Cogmind - Beta 14 @@@ ROGUE MODE // 2025.01.18 @ 20:37:01 Player: abnormality Result: Self-destructed Performance ------------- Evolutions (1) 500 Regions Visited (2) 400 Robots Destroyed (18) 90 Value Destroyed (335) 335 Prototype IDs (0) 0 Alien Tech Used (0) 0 Bonus (0) 0 TOTAL SCORE: 1325 Bonus ------- None Cogmind --------- Core Integrity 202/400 Matter 290/300 Energy 82/100 System Corruption 0% Temperature Cool (0) Movement Flying (40) Location -9/Materials Parts ------- > --- POWER (1) -------- (None) > --- PROPULSION (3) --- Flight Unit > --- UTILITY (3) ------ (None) > --- WEAPON (2) ------- (None) > --- INVENTORY (5) ---- Ion Engine Seismic Detector ECM Suite Peak State ------------ > --- POWER ------------ Ion Engine > --- PROPULSION ------- Light Treads Light Treads > --- UTILITY ---------- Medium Storage Unit Seismic Detector > --- WEAPON ----------- EM Pulse Gun EM Pulse Gun > --- INVENTORY -------- Ion Engine Ion Engine Light Nuclear Core Small Storage Unit Seismic Detector Transport Network Coupler ECM Suite Medium Laser Medium Laser [Rating: 8] Favorites ----------- Power Ion Engine Engine Ion Engine Power Core Light Nuclear Core Propulsion Light Treads Treads Light Treads Flight Unit Flight Unit Utility Seismic Detector Device Seismic Detector Storage Small Storage Unit Weapon Medium Laser Energy Gun Medium Laser Ballistic Gun Assault Rifle Launcher Grenade Launcher Build | -11 -10 -9 ------- Run | Yrd Mat Mat Slots Evolved 2 | . . 2 Power . | . . . Propulsion 1 | . . 1 Utility 1 | . . 1 Weapon . | . . . Parts Attached 28 | 7 15 6 Power 3 | 1 1 1 Engine 2 | 1 1 . Core 1 | . . 1 Reactor . | . . . Propulsion 7 | 2 3 2 Treads 2 | 2 . . Leg . | . . . Wheel . | . . . Hover . | . . . Flight 5 | . 3 2 Utility 4 | 2 2 . Device 2 | 1 1 . Storage 2 | 1 1 . Processor . | . . . Hackware . | . . . Protection . | . . . Artifact . | . . . Weapon 14 | 2 9 3 Energy Gun 12 | 2 7 3 Energy Cannon . | . . . Ballistic Gun 1 | . 1 . Ballistic Cannon . | . . . Launcher 1 | . 1 . Special Weapon . | . . . Impact Weapon . | . . . Slashing Weapon . | . . . Piercing Weapon . | . . . Special Melee Weapon . | . . . Unidentified Prototypes . | . . . Corrupted Parts 1 | 1 . . System Corruption 3 | 3 . . Parts Lost 9 | . 1 8 Power 1 | . . 1 Propulsion 4 | . 1 3 Utility 1 | . . 1 Weapon 3 | . . 3 Highest Loss Streak 8 | . 1 8 To Critical Strikes . | . . . Average Slot Usage (%) 87 | . 95 44 Engine 11 | . 12 5 Treads 18 | . 22 . Flight 6 | . 5 11 Device 13 | . 14 11 Storage 9 | . 11 . Energy Gun 23 | . 25 12 Ballistic Gun 1 | . . 2 Launcher 1 | . 2 . Peak Build Rating 8 | 7 8 7 Average Rating 6 | 5 6 5 On Entrance 4 | . 7 6 Naked Turns . | . . . Heaviest Build 21 | 15 21 11 Greatest Support 40 | 40 40 8 Greatest Overweight (x) 5 | . 5 3 Average Overweight (x) . | . . . Largest Inventory Capacity 10 | 8 10 5 Average Capacity 7 | 6 8 5 Most Carried 9 | 5 9 5 Average Carried 4 | 1 4 3 Final Capacity 8 | 8 5 5 Final Carried 4 | 1 4 3 Class Distribution -------------------- 100% | Mutant Dominant Class ---------------- Mutant | -10/Materials Mutant | -9/Materials Resources | -11 -10 -9 ----------- Run | Yrd Mat Mat Matter Collected 524 | 182 215 127 Remotely . | . . . Salvage Created 634 | 80 370 184 Parts 39 | 6 21 12 Haulers Intercepted 2 | . 2 . Recyclers Shooed . | . . . Parts Field Recycled . | . . . Retrieved Matter . | . . . Parts Self-Destructed . | . . . Prevented . | . . . Kills | -11 -10 -9 ------- Run | Yrd Mat Mat Combat Hostiles Destroyed 11 | . 6 5 Guns 7 | . 2 5 AOE 4 | . 4 . Classes Destroyed 8 | 2 5 1 Builder 1 | . 1 . Tunneler 1 | 1 . . Hauler 2 | . 2 . Recycler 2 | 1 1 . Watcher 1 | . 1 . Swarmer 5 | . 3 2 Grunt 5 | . 3 2 Sentry 1 | . . 1 Best Kill Streak 5 | 2 5 4 Combat Bots Only 4 | . 4 4 Max Kills in Single Turn 2 | 1 2 1 Gunslinging . | . . . Exploded 2 | . 2 . Melee . | . . . Uniques/NPCs Destroyed . | . . . Combat | -11 -10 -9 -------- Run | Yrd Mat Mat Hostile Shots Fired 97 | . 38 59 Missed 26 | . 10 16 Damage Taken 782 | . 300 482 Core 241 | . 43 198 Absorbed by Shields . | . . . Core Remaining (%) 91 | 100 82 . Volleys Fired 57 | 3 31 23 Largest 2 | 2 2 2 Hottest 106 | 80 100 106 Shots Fired 96 | 5 62 29 Gun 91 | 5 57 29 Cannon . | . . . Launcher 5 | . 5 . Special . | . . . Kinetic 7 | . 4 3 Thermal 71 | . 45 26 Explosive 5 | . 5 . Electromagnetic 13 | 5 8 . Robot Hit Streak 8 | 4 6 8 Robot Miss Streak 4 | . 4 4 Penetration Max . | . . . Secondary Targets . | . . . Shots Hit Robots 51 | 4 30 17 Core Hits 29 | 2 19 8 Critical Kills 1 | . 1 . Critical Parts Destroyed . | . . . Critical Strikes 4 | . 3 1 Burn 3 | . 2 1 Destroy 1 | . 1 . Melee Attacks . | . . . Impact . | . . . Slashing . | . . . Piercing . | . . . Sneak Attacks . | . . . Combat Hostiles . | . . . Follow-up Attacks . | . . . Damage Inflicted 955 | 104 602 249 Guns 679 | 52 378 249 Cannons . | . . . Explosions 276 | 52 224 . Melee . | . . . Ramming . | . . . Kinetic 48 | . 37 11 Thermal 576 | 52 286 238 Explosive 224 | . 224 . Electromagnetic 107 | 52 55 . Impact . | . . . Slashing . | . . . Piercing . | . . . Highest Corruption 3 | 3 3 . Average Corruption 3 | 3 3 . Corruption Purged . | . . . Corruption Blocked . | . . . Effects 10 | 2 8 . Message Errors 3 | 1 2 . Matter Fused 2 | . 2 . Heat Flow Errors 2 | 1 1 . Energy Discharges 2 | . 2 . Data Loss (minor) 1 | . 1 . Overload Shots . | . . . Overflow Damage 16 | 16 . . Projectiles . | . . . Explosions 16 | 16 . . Melee . | . . . Knockbacks . | . . . Impact . | . . . Kinetic . | . . . Secondary . | . . . Self-Inflicted Damage 24 | . 24 . Shots 1 | . 1 . Rammed 1 | . 1 . Targets Rammed 1 | . 1 . Kicked . | . . . Crushed . | . . . Highest Temperature 237 | 237 234 135 Average Temperature 55 | 47 61 41 Received Heat Transfer 249 | . 96 153 Siege Activations . | . . . Robots Corrupted . | . . . Combat Hostiles . | . . . Parts Fried . | . . . Impact Corruptions . | . . . Robots Melted . | . . . Combat Hostiles . | . . . Parts Melted 2 | . . 2 Heat Transferred 1839 | 100 999 740 Parts Sabotaged . | . . . Parts Stolen . | . . . Parts Stripped . | . . . Power Chain Reactions 1 | 1 . . Alert | -11 -10 -9 ------- Run | Yrd Mat Mat Peak Influence 261 | 10 194 261 Initial 81 | . 6 81 Average 61 | 4 49 153 Maximum Alert Level 1 | . . 1 Low Security (%) 94 | 100 100 66 Level 1 5 | . . 33 Level 2 . | . . . Level 3 . | . . . Level 4 . | . . . Level 5 . | . . . High Security . | . . . Max Security . | . . . Squads Dispatched 3 | . 1 2 Investigation . | . . . Extermination . | . . . Reinforcement 3 | . 1 2 Assault . | . . . Garrison . | . . . Intercept . | . . . Searches Triggered . | . . . Construction Impeded . | . . . Haulers Reinforced . | . . . Active Scanning Responses . | . . . Cargo Convoy Interrupts . | . . . Stealth | -11 -10 -9 --------- Run | Yrd Mat Mat Distress Signals 1 | . 1 . Communications Jammed . | . . . Distress Signals . | . . . Times Spotted 29 | . 16 13 Peak Tracking Total 6 | . 5 6 Tactical Retreats 4 | . 2 2 Traps | -11 -10 -9 ------- Run | Yrd Mat Mat Traps Triggered . | . . . Indirectly . | . . . Trap Hack Attempts . | . . . Triggered . | . . . Disarmed . | . . . Reprogrammed . | . . . Reused . | . . . Traps Extracted . | . . . Installed . | . . . Triggered . | . . . Machines | -11 -10 -9 ---------- Run | Yrd Mat Mat Machines Disabled . | . . . Max in Single Turn . | . . . Machines Repaired . | . . . Machines Dismantled . | . . . Machines Sabotaged . | . . . Overloaded Fab Kills . | . . . Hacking | -11 -10 -9 --------- Run | Yrd Mat Mat Machines Accessed 3 | . 2 1 Terminals 3 | . 2 1 Fabricators . | . . . Repair Stations . | . . . Recycling Units . | . . . Scanalyzers . | . . . Garrison Access . | . . . Total Hacks 3 | . 2 1 Successful 3 | . 2 1 Failed . | . . . Catastrophic . | . . . Database Lockouts . | . . . Manual . | . . . Terminals 3 | . 2 1 Fabricators . | . . . Repair Stations . | . . . Recycling Units . | . . . Scanalyzers . | . . . Garrison Access . | . . . Terminal Hacks 3 | . 2 1 Alert Level 2 | . 1 1 Locate Traps 1 | . 1 . Fabricator Hacks . | . . . Repair Station Hacks . | . . . Recycling Unit Hacks . | . . . Scanalyzer . | . . . Garrison Access Hacks . | . . . Unauthorized Hacks . | . . . Terminals . | . . . Fabricators . | . . . Repair Stations . | . . . Recycling Units . | . . . Scanalyzers . | . . . Garrison Access . | . . . Data Cores Recovered . | . . . Used . | . . . Hacking Detections 1 | . . 1 Full Trace Events . | . . . Feedback Events . | . . . Feedback Blocked . | . . . Robot Schematics Acquired . | . . . Robots Built . | . . . Authchips . | . . . Time . | . . . Total Robot Build Rating . | . . . Part Schematics Acquired . | . . . Parts Built . | . . . Authchips . | . . . Time . | . . . Total Part Build Rating . | . . . Parts Repaired . | . . . Time . | . . . Parts Recycled . | . . . Recycled Matter . | . . . Retrieved Matter . | . . . Retrieved Components . | . . . Parts Scanalyzed . | . . . Part Schematics Acquired . | . . . Parts Damaged . | . . . Bothacking | -11 -10 -9 ------------ Run | Yrd Mat Mat Used RIF Installer . | . . . Robots Hacked . | . . . Non-combat . | . . . Combat . | . . . Robot Hacks Applied . | . . . Relay Couplers Released . | . . . Fabnet Peak Effective % . | . . . Robots Rewired . | . . . Allies Hacked . | . . . Hacks Repelled . | . . . Allies | -11 -10 -9 -------- Run | Yrd Mat Mat Total Allies . | . . . Largest Group . | . . . Highest-Rated Group . | . . . Highest-Rated Ally . | . . . Total Orders . | . . . Ally Attacks . | . . . Total Damage . | . . . Kills . | . . . Allies Corrupted . | . . . Allies Melted . | . . . Intel | -11 -10 -9 ------- Run | Yrd Mat Mat Robot Analysis Total . | . . . Derelict Logs Recovered . | . . . Drone Launches . | . . . Drone Recoveries . | . . . Exploration | -11 -10 -9 ------------- Run | Yrd Mat Mat Turns Passed 816 | 82 608 126 Spaces Moved 487 | 43 328 116 Core 25 | 9 . 16 Treads 268 | 34 234 . Legs . | . . . Wheels . | . . . Hover . | . . . Flight 194 | . 94 100 Fastest Speed 37 | 50 37 37 Average Speed 111 | 136 129 51 Slowest Speed 460 | 160 460 200 Overloaded Moves . | . . . Propulsion Burnouts . | . . . Robots Hopped 1 | . 1 . Cave-ins Triggered . | . . . Exploration Rate (%) 24 | 4 51 19 Regions Visited 2 Branch Regions . Pre-discovered Areas . | . . . Known Exits Taken . | . . . Unknown Exits Taken 2 | 1 1 . Scrap Searched . | . . . Spaces Dug . | . . . Terrain Destroyed 28 | . 28 . Melee . | . . . Projectile . | . . . AOE 28 | . 28 . Terrain Rammed . | . . . Walls Destroyed . | . . . Machines Disabled . | . . . Actions | -11 -10 -9 --------- Run | Yrd Mat Mat Total 661 | 62 446 153 Wait 42 | . 42 . Move 483 | 42 325 116 Hop 1 | . 1 . Pick Up 30 | 9 16 5 Fast Attach . | . . . Attach 16 | 7 4 5 Detach 2 | . 2 . Swap 12 | . 11 1 Drop 17 | 1 13 3 Fire 57 | 3 31 23 Melee . | . . . Ram . | . . . Kick . | . . . Crush 1 | . 1 . Escape Stasis . | . . . Rewire . | . . . Trap . | . . . Miscellaneous . | . . . Route ------- -11/Scrapyard -10/Materials -9/Materials History --------- Turn | Location | Event 9 | -11/Scrapyard | Discovered new exit (range 15) 83 | -11/Scrapyard | Entered Materials 302 | -10/Materials | Build established: Mutant 679 | -10/Materials | Discovered new exit (range 15) 691 | -10/Materials | Entered another Materials area 691 | -9/Materials | Evolved 2 slots: Propulsion x1, Utility x1 817 | -9/Materials | Self-destructed Last Messages --------------- 00776_ K-01 Serf collects debris. 00781_ Acquired Lgt. Nuclear Core. 00783_ K-01 Serf collects debris. 00785_ Acquired 62 matter. 00786_ K-01 Serf collects debris. 00789_ Acquired 47 matter. 00790_ K-01 Serf collects debris. 00792_ Beam Rifle destroyed. 00793_ K-01 Serf collects debris. 00806_ S-10 Pest destroyed. 00807_ K-01 Serf collects debris. 00808_ Med. Laser destroyed. 00809_ Lgt. Nuclear Core destroyed. 00809_ Acquired Flight Unit. 00811_ K-01 Serf collects debris. 00812_ Acquired Med. Laser. 00813_ Critical hit (Burn: +37). 00813_ Sensor Array destroyed. 00815_ K-01 Serf collects debris. 00815_ Med. Laser destroyed. Map ----- +----------------------------------------------------+ | ???????????????????????########????# #??? | | ???????????????????????#/// [#????# #??? | | ???????????????????????#// #????# #??? | | ???????????????????????#// #????# #??? | | ???????????????????????# [#????# #??? | | ???????????????????????# #????# #??? | | ???????????????????????# #????# #??? | | ??????????#################+######## #### | | ??????????# # | | ??????????# # | | ??????????# # | | ??????????# + ################# | | ??????????# # #???????????????? | | ??????????# |! # #############???? | | ??????????# !! # # T #???? | | ??????????# # # """ ????? | | ??????????########### # """""????? | | ????????????????????# # """"?????? | | ????????????????????# + """"?????? | | ????????????????????# # """ ????? | | ?????????????######## # #???? | | ?????????????# # #############???? | | ?????????????# k # #???????????????? | | ????????????## #* #???????????????? | | ????????????#*!s =# #???????????????? | | ?????????????#%s@ %+ #???????????????? | | ?????????????#[Y[ # #???????????????? | | ?????????????#+###### #???????????????? | | ????????????# ????# #???????????????? | | ????????????# ????# #???????????????? | | ???????????? #???# #???????????????? | | ???????????## #???# #???????????????? | | ????????????# #???# #???????????????? | | ????????????# #???# #???????????????? | | ????????????# #???# #???????????????? | | ???????????? ???# %=#???????????????? | | ???????????? ??? [ #???????????????? | | ???????????? ??? +???????????????? | | ???????????? ??? #???????????????? | | ???????????# ???# #???????????????? | | ????????????# #???? ????????????????? | | ????????????? ????????????????????????? | | ????????????????????????????????????????? | | ????????????????????????????????????????? | | ????????????????????????????????????????? | | ????????????????????????????????????????? | | ????????????????????????????????????????? | | ????????????????????????????????????????? | | ????????????????????????????????????????? | | ????????????????????????????????????????? | +----------------------------------------------------+ Best States ------------- Heat Dissipation 28 Energy Generation 14 Energy Capacity 250 Matter Stores 300 Matter Capacity 300 Sight Range 16 Robot Scan Range 14 Terrain Scan Density 10 Evasion (%) 62 Recoil Reduction 2 Item Schematics ----------------- None Robot Schematics ------------------ None Fabricated ------------ Nothing Alien Tech Used ----------------- None Achievements -------------- None Challenges ------------ None Game ------ Seed LinkedPhysicsDissipator Manual? 0 Play Time 00:11:02 Cumulative 20.0 hours Start 2025.01.18 @ 20:26:30 End 2025.01.18 @ 20:37:01 Sessions 1 Manual Loads 0 Difficulty Rogue Special Mode None Game No. 87 Rogue 87 Adventurer 0 Explorer 0 Win Type - Total 0 Types 0/0/0/0/0/0/0/0/0 Lore% 16 Gallery% 22 Achievement% 24 Wizard Run 0 Options --------- Layout 0 ASCII 0 Keyboard 0 Movement Mouse Keybinds 0 Fullscreen 1 Font 18/SmallcapsGlow Map View 38x25 Zoom Use 99% Tactical HUD 1 Map Filters NONE Filters NONE Steam 1 RUN: 69870a75-9dcf-4f18-80b4-160d446a054d